Cogmind - Beta 15 @@@ ROGUE MODE // 2025.10.14 @ 17:25:56 Player: Runagate Result: Destroyed by G-47 Trooper with Particle Gun Performance ------------- Evolutions (2) 1000 Regions Visited (3) 600 Robots Destroyed (57) 285 Value Destroyed (1495) 1495 Prototype IDs (1) 20 Alien Tech Used (0) 0 Bonus (0) 0 TOTAL SCORE: 3400 Bonus ------- None Cogmind --------- Core Integrity 0/550 Matter 300/300 Energy 265/265 System Corruption 5% Temperature Cool (18) Movement Core (400) Ox7 Location -8/Materials Parts ------- > --- POWER (1) -------- Improved Ion Engine > --- PROPULSION (5) --- (None) > --- UTILITY (3) ------ Medium Storage Unit Microactuators Hacking Suite > --- WEAPON (2) ------- Katana Katana > --- INVENTORY (10) --- Improved Heat Sink Improved Heat Sink Improved Heat Sink Improved Signal Interpreter Seismic Detector Microactuators ECM Suite Improved Light Armor Plating Katana Katana Peak State ------------ > --- POWER ------------ Light Nuclear Core > --- PROPULSION ------- Aluminum Leg Aluminum Leg Flight Unit Flight Unit > --- UTILITY ---------- Improved Heat Sink Medium Storage Unit Hacking Suite > --- WEAPON ----------- Heavy Hammer Axe > --- INVENTORY -------- Light Ion Engine Improved Heat Sink Improved Signal Interpreter Seismic Detector ECM Suite Particle Gun [Rating: 20] Favorites ----------- Power Ion Engine Engine Ion Engine Power Core Light Nuclear Core Propulsion Aluminum Leg Treads Light Treads Leg Aluminum Leg Hover Unit Hover Unit Flight Unit Flight Unit Utility Medium Storage Unit Device Seismic Detector Storage Medium Storage Unit Hackware Hacking Suite Protection Improved Light Armor Plating Weapon Assault Rifle Energy Gun Medium Laser Ballistic Gun Assault Rifle Launcher Grenade Launcher Impact Weapon Heavy Hammer Slashing Weapon Katana Build | -11 -10 -9 -8 ------- Run | Yrd Mat Mat Mat Slots Evolved 4 | . . 2 2 Power . | . . . . Propulsion 3 | . . 2 1 Utility 1 | . . . 1 Weapon . | . . . . Parts Attached 49 | 7 8 12 22 Power 8 | 1 3 1 3 Engine 7 | 1 3 1 2 Core 1 | . . . 1 Reactor . | . . . . Propulsion 18 | 2 2 7 7 Treads 1 | . . 1 . Leg 9 | 2 2 1 4 Wheel . | . . . . Hover 1 | . . 1 . Flight 7 | . . 4 3 Utility 12 | 2 2 1 7 Device 6 | 1 1 1 3 Storage 2 | 1 1 . . Processor . | . . . . Hackware 2 | . . . 2 Protection 2 | . . . 2 Artifact . | . . . . Weapon 11 | 2 1 3 5 Energy Gun 2 | 1 . 1 . Energy Cannon . | . . . . Ballistic Gun 3 | 1 1 1 . Ballistic Cannon . | . . . . Launcher 1 | . . 1 . Special Weapon . | . . . . Impact Weapon 2 | . . . 2 Slashing Weapon 3 | . . . 3 Piercing Weapon . | . . . . Special Melee Weapon . | . . . . Unidentified Prototypes 1 | . . 1 . Parts Lost 25 | . 2 8 15 Power 3 | . 1 . 2 Propulsion 14 | . . 5 9 Utility 2 | . 1 . 1 Weapon 6 | . . 3 3 Highest Loss Streak 6 | . 1 4 6 To Critical Strikes . | . . . . Average Backups 8 | 1 8 9 8 Power . | . 1 1 . Propulsion 1 | . 2 . . Utility 3 | . 1 4 5 Weapon 2 | . 2 3 1 Tool/Special . | . . . . Unused Backups 11 | . 4 . 7 Power . | . . . . Propulsion 3 | . 3 . . Utility 5 | . 1 . 4 Weapon 3 | . . . 3 Tool/Special . | . . . . Average Slot Usage (%) 80 | . 96 70 65 Engine 9 | . 13 7 4 Treads 2 | . . 6 1 Leg 17 | . 28 3 14 Flight 5 | . . 14 5 Device 9 | . 11 11 5 Storage 11 | . 14 11 9 Hackware 2 | . . . 7 Energy Gun 7 | . 13 5 . Ballistic Gun 8 | . 14 7 . Impact Weapon 2 | . . . 6 Slashing Weapon 2 | . . . 6 Peak Build Rating 20 | 7 8 10 20 Average Rating 9 | 5 7 7 14 On Entrance 5 | . 7 8 6 Naked Turns . | . . . . Heaviest Build 24 | 15 20 20 24 Greatest Support 30 | 20 20 20 30 Greatest Overweight (x) 4 | . . 3 4 Average Overweight (x) . | . . . . Largest Inventory Capacity 10 | 8 10 10 10 Average Capacity 9 | 7 9 10 10 Most Carried 10 | 2 10 10 10 Average Carried 8 | 1 8 9 8 Final Capacity 10 | 8 10 10 10 Final Carried 10 | 2 10 9 10 Class Distribution -------------------- 77% | Mutant 10% | Scavenger-Mutant 7% | Sprinter 5% | Gladiator Dominant Class ---------------- Mutant | -10/Materials Mutant | -9/Materials Mutant | -8/Materials Resources | -11 -10 -9 -8 ----------- Run | Yrd Mat Mat Mat Matter Collected 1215 | 303 215 249 448 Remotely . | . . . . Salvage Created 1973 | 243 488 440 802 Parts 106 | 13 32 24 37 Haulers Intercepted 1 | . . 1 . Recyclers Shooed 2 | . . 2 . Parts Field Recycled . | . . . . Retrieved Matter . | . . . . Parts Self-Destructed . | . . . . Prevented . | . . . . Kills | -11 -10 -9 -8 ------- Run | Yrd Mat Mat Mat Combat Hostiles Destroyed 39 | . 13 8 18 Melee 8 | . . . 8 Guns 21 | . 13 7 1 AOE 4 | . . 1 3 Classes Destroyed 11 | 3 3 2 3 Worker 4 | 2 . 2 . Builder 2 | . . . 2 Tunneler 5 | 5 . . . Hauler 1 | . . 1 . Recycler 3 | 1 1 . 1 Operator 1 | . . . 1 Watcher 2 | . 1 . 1 Swarmer 10 | . 6 . 4 Grunt 21 | . 7 5 9 Brawler 1 | . . . 1 Sentry 7 | . . 3 4 Best Kill Streak 7 | 7 3 3 5 Combat Bots Only 4 | . 3 2 4 Max Kills in Single Turn 3 | 2 1 2 3 Gunslinging . | . . . . Exploded 3 | . . 1 3 Melee 1 | . . . 1 Uniques/NPCs Destroyed . | . . . . Combat | -11 -10 -9 -8 -------- Run | Yrd Mat Mat Mat Hostile Shots Fired 302 | . 56 75 171 Missed 103 | . 15 32 56 Hits 199 | . 41 43 115 Melee 3 | . . . 3 Projectile 196 | . 41 43 112 Critical Strikes 3 | . . 2 1 Damage Taken 2775 | . 427 591 1757 Core 751 | . 83 111 557 Absorbed by Shields . | . . . . Regen/Repaired (Parts) 66 | . 48 . 18 Core Remaining (%) 79 | 100 66 72 . Volleys Fired 107 | 11 44 37 15 Largest 2 | 2 2 2 2 Hottest 70 | 70 70 70 50 Shots Fired 196 | 22 90 67 17 Gun 183 | 22 90 65 6 Cannon . | . . . . Launcher 13 | . . 2 11 Special . | . . . . Kinetic 100 | 11 46 37 6 Thermal 83 | 11 44 28 . Explosive 13 | . . 2 11 Electromagnetic . | . . . . Robot Hit Streak 15 | 5 6 15 10 Robot Miss Streak 5 | 1 5 2 3 Penetration Max . | . . . . Secondary Targets . | . . . . Shots Hit Robots 173 | 15 51 54 53 Core Hits 82 | 9 27 25 21 Critical Kills . | . . . . Critical Parts Destroyed 4 | . . . 4 Critical Strikes 13 | . 3 1 9 Burn 4 | . 3 1 . Smash 5 | . . . 5 Sever 4 | . . . 4 Melee Attacks 58 | . . . 58 Impact 29 | . . . 29 Slashing 29 | . . . 29 Piercing . | . . . . Sneak Attacks 1 | . . . 1 Combat Hostiles . | . . . . Follow-up Attacks 8 | . . . 8 Damage Inflicted 3727 | 199 674 766 2088 Guns 1526 | 199 674 617 36 Cannons . | . . . . Explosions 605 | . . 126 479 Melee 1573 | . . . 1573 Ramming 23 | . . 23 . Kinetic 833 | 111 348 338 36 Thermal 775 | 88 326 279 82 Explosive 523 | . . 126 397 Electromagnetic . | . . . . Impact 873 | . . . 873 Slashing 700 | . . . 700 Piercing . | . . . . Highest Corruption 5 | . 1 . 5 Average Corruption 2 | . 1 . 5 Corruption Purged . | . . . . Corruption Blocked . | . . . . Effects 15 | . 4 . 11 Message Errors 3 | . 1 . 2 Matter Fused 5 | . . . 5 Heat Flow Errors 1 | . . . 1 Energy Discharges 3 | . 1 . 2 Parts Rejected 1 | . . . 1 Misfires 2 | . 2 . . Overload Shots . | . . . . Overflow Damage 373 | . . . 373 Projectiles . | . . . . Explosions 42 | . . . 42 Melee 331 | . . . 331 Knockbacks 5 | . . 1 4 Impact 5 | . . 1 4 Kinetic . | . . . . Secondary . | . . . . Self-Inflicted Damage . | . . . . Shots . | . . . . Rammed 9 | . . 8 1 Targets Rammed 9 | . . 8 1 Kicked . | . . . . Crushed . | . . . . Highest Temperature 248 | 45 111 142 248 Average Temperature 35 | 15 35 39 81 Received Heat Transfer 1245 | . 159 249 837 Siege Activations . | . . . . Martial Activations . | . . . . Shielding Activations . | . . . . Robots Disrupted . | . . . . Combat Hostiles . | . . . . Robots Corrupted 8 | . . . 8 Combat Hostiles 6 | . . . 6 Parts Fried 5 | . . . 5 Impact Corruptions 12 | . . . 12 Robots Melted . | . . . . Combat Hostiles . | . . . . Parts Melted 5 | 1 1 3 . Heat Transferred 2381 | 259 1184 888 50 Parts Sabotaged . | . . . . Parts Stolen . | . . . . Parts Stripped . | . . . . Power Chain Reactions . | . . . . Alert | -11 -10 -9 -8 ------- Run | Yrd Mat Mat Mat Maximum Alert Level 1 | . . 1 . Low Security (%) 90 | 100 100 62 100 Level 1 9 | . . 37 . Level 2 . | . . . . Level 3 . | . . . . Level 4 . | . . . . Level 5 . | . . . . High Security . | . . . . Max Security . | . . . . Peak Influence 234 | 10 180 234 151 Initial 82 | . 6 11 82 Average 92 | 3 67 134 107 Influence Increases 1600 | 40 409 549 602 Destroy 0b10 Robot/C 780 | . 260 160 360 Destroy 0b10 Robot/NC 90 | 40 10 15 25 Destroy Leader 206 | . 62 52 92 Successful Hack 39 | . 16 17 6 Disable Machine 75 | . . 30 45 Destroy Structure 80 | . 1 35 44 Partial Spotted 45 | . . 45 . Lose Combat Pursuer 285 | . 60 195 30 Influence Decreases 1494 | 30 391 381 692 Entered New Map 135 | . 4 17 114 Time Decay 1053 | 30 367 284 372 Lost Part 250 | . 20 80 150 Purge Threat 56 | . . . 56 Squads Dispatched 7 | . 3 2 2 Investigation 4 | . 2 1 1 Extermination . | . . . . Reinforcement 3 | . 1 1 1 Assault . | . . . . Garrison . | . . . . Intercept . | . . . . Searches Triggered . | . . . . Construction Impeded 1 | . . . 1 Haulers Reinforced . | . . . . Active Scanning Responses . | . . . . Cargo Convoy Interrupts . | . . . . Stealth | -11 -10 -9 -8 --------- Run | Yrd Mat Mat Mat Distress Signals 5 | . . 3 2 Communications Jammed . | . . . . Distress Signals . | . . . . Times Spotted 72 | . 20 24 28 Peak Tracking Total 11 | . 3 11 5 Tactical Retreats 11 | . 2 7 2 Traps | -11 -10 -9 -8 ------- Run | Yrd Mat Mat Mat Traps Triggered 6 | . 3 1 2 Indirectly . | . . . . Trap Hack Attempts . | . . . . Triggered . | . . . . Disarmed . | . . . . Reprogrammed . | . . . . Reused . | . . . . Traps Extracted . | . . . . Installed . | . . . . Triggered . | . . . . Machines | -11 -10 -9 -8 ---------- Run | Yrd Mat Mat Mat Machines Disabled 5 | . . 2 3 Max in Single Turn 3 | . . 1 3 Garrison Access 1 | . . . 1 Machines Repaired . | . . . . Machines Dismantled . | . . . . Machines Sabotaged . | . . . . Overloaded Fab Kills . | . . . . Hacking | -11 -10 -9 -8 --------- Run | Yrd Mat Mat Mat Machines Accessed 16 | . 7 5 4 Terminals 13 | . 6 5 2 Fabricators . | . . . . Repair Stations 2 | . 1 . 1 Recycling Units . | . . . . Scanalyzers . | . . . . Garrison Access 1 | . . . 1 Total Hacks 39 | . 15 10 14 Successful 29 | . 12 7 10 Failed 10 | . 3 3 4 Catastrophic 1 | . . . 1 Database Lockouts . | . . . . Manual 32 | . 12 10 10 Terminals 32 | . 12 10 10 Fabricators . | . . . . Repair Stations 6 | . 3 . 3 Recycling Units . | . . . . Scanalyzers . | . . . . Garrison Access 1 | . . . 1 Terminal Hacks 2 | . . . 2 Unreport Threat 1 | . . . 1 Maintenance Status 1 | . . . 1 Fabricator Hacks . | . . . . Repair Station Hacks 4 | . 2 . 2 Scan Component 2 | . 1 . 1 Repair 2 | . 1 . 1 Recycling Unit Hacks . | . . . . Scanalyzer . | . . . . Garrison Access Hacks 1 | . . . 1 Seal Access 1 | . . . 1 Unauthorized Hacks 22 | . 10 7 5 Terminals 22 | . 10 7 5 Botnet 7 | . 3 2 2 Operators 2 | . 1 . 1 Skim 13 | . 6 5 2 Fabricators . | . . . . Repair Stations . | . . . . Recycling Units . | . . . . Scanalyzers . | . . . . Garrison Access . | . . . . Data Cores Recovered 1 | . . . 1 Used . | . . . . Hacking Detections 10 | . 4 3 3 Full Trace Events 2 | . 1 . 1 Feedback Events . | . . . . Feedback Blocked . | . . . . Robot Schematics Acquired . | . . . . Robots Built . | . . . . Authchips . | . . . . Time . | . . . . Total Robot Build Rating . | . . . . Part Schematics Acquired . | . . . . Parts Built . | . . . . Authchips . | . . . . Time . | . . . . Total Part Build Rating . | . . . . Parts Repaired 2 | . 1 . 1 Time 52 | . 26 . 26 Parts Recycled . | . . . . Recycled Matter . | . . . . Retrieved Matter . | . . . . Retrieved Components . | . . . . Parts Scanalyzed . | . . . . Part Schematics Acquired . | . . . . Parts Damaged . | . . . . Bothacking | -11 -10 -9 -8 ------------ Run | Yrd Mat Mat Mat Used RIF Installer . | . . . . Robots Hacked . | . . . . Non-combat . | . . . . Combat . | . . . . Robot Hacks Applied . | . . . . Relay Couplers Released . | . . . . Fabnet Peak Effective % . | . . . . Robots Rewired . | . . . . Allies Hacked . | . . . . Hacks Repelled . | . . . . Allies | -11 -10 -9 -8 -------- Run | Yrd Mat Mat Mat Total Allies . | . . . . Largest Group . | . . . . Highest-Rated Group . | . . . . Highest-Rated Ally . | . . . . Total Orders . | . . . . Ally Attacks . | . . . . Total Damage . | . . . . Kills . | . . . . Allies Corrupted . | . . . . Allies Melted . | . . . . Intel | -11 -10 -9 -8 ------- Run | Yrd Mat Mat Mat Active Infowar (turns) 1617 | 28 564 744 281 Seismic 1617 | 28 564 744 281 Robot Analysis Total . | . . . . Derelict Logs Recovered . | . . . . Drone Launches . | . . . . Drone Recoveries . | . . . . Exploration | -11 -10 -9 -8 ------------- Run | Yrd Mat Mat Mat Turns Passed 3108 | 132 1301 752 923 Spaces Moved 1781 | 74 565 741 401 Core 40 | 6 . 32 2 Treads 286 | . . 199 87 Legs 912 | 68 565 . 279 Wheels . | . . . . Hover . | . . . . Flight 543 | . . 510 33 Fastest Speed 31 | 50 120 31 114 Average Speed 109 | 114 120 73 159 Slowest Speed 260 | 120 120 200 260 Overloaded Moves . | . . . . Propulsion Burnouts . | . . . . Robots Hopped 2 | . . 2 . Potential Cave-ins . | . . . . Cave-ins Triggered . | . . . . Exploration Rate (%) 40 | 4 73 57 27 Regions Visited 3 Branch Regions . Pre-discovered Areas 3 | . 3 . . Known Exits Taken 2 | . 1 1 . Unknown Exits Taken 1 | 1 . . . Scrap Searched . | . . . . Spaces Dug . | . . . . Terrain Destroyed 105 | . . 37 68 Melee . | . . . . Projectile . | . . . . AOE 105 | . . 37 68 Terrain Rammed . | . . . . Walls Destroyed . | . . . . Machines Disabled . | . . . . Actions | -11 -10 -9 -8 --------- Run | Yrd Mat Mat Mat Total 2659 | 96 1104 876 583 Wait 595 | 3 466 60 66 Move 1774 | 73 564 736 401 Hop 2 | . . 2 . Pick Up 28 | 2 12 4 10 Fast Attach 32 | 7 3 7 15 Attach 22 | . . 9 13 Detach 11 | . . 7 4 Swap 13 | . 6 . 7 Drop 18 | . 9 6 3 Fire 107 | 11 44 37 15 Melee 48 | . . . 48 Ram . | . . . . Kick . | . . . . Crush 9 | . . 8 1 Escape Stasis . | . . . . Rewire . | . . . . Trap . | . . . . Miscellaneous . | . . . . Route ------- -11/Scrapyard -10/Materials (discovered 6 exits: *Mat x3 / *Min x2 / Sub) -9/Materials (discovered 5 exits: *Mat x3 / Min / *Sto) -8/Materials (discovered 3 exits: *Fac x3) History --------- Turn | Location | Event 3 | -11/Scrapyard | Discovered new exit (range 15) 133 | -11/Scrapyard | Entered Materials 241 | -10/Materials | Discovered new exit (range 16) 305 | -10/Materials | Build established: Mutant 441 | -10/Materials | Repaired Med. Laser 538 | -10/Materials | Discovered new exit (range 8) 633 | -10/Materials | Derelicts attacked the area 657 | -10/Materials | Discovered new exit (range 14) 850 | -10/Materials | Discovered new exit (range 15) 1122 | -10/Materials | Learned location of Subcaves (-10) 1185 | -10/Materials | Learned Storage emergency access door positions 1238 | -10/Materials | Identified exit to Mines 1281 | -10/Materials | Identified exit to Subcaves 1281 | -10/Materials | Learned location of 2 exits from Materials 1316 | -10/Materials | Identified exit to Materials 1434 | -10/Materials | Entered another Materials area 1434 | -9/Materials | Evolved 2 slots: Propulsion x2 1435 | -9/Materials | Identified exit to Mines 1436 | -9/Materials | Identified exit to Materials 1631 | -9/Materials | Discovered new exit (range 14) 1718 | -9/Materials | Lost 4 parts (4n) 1797 | -9/Materials | Learned Storage security intel 1840 | -9/Materials | Learned location of 3 exits from Materials 1873 | -9/Materials | Identified exit to Storage 1908 | -9/Materials | Learned Storage stockpile data 1910 | -9/Materials | Learned location of 2 exits from Materials 1911 | -9/Materials | Learned location of 3 exits from Materials 1913 | -9/Materials | Learned location of 1 exit from Storage 1944 | -9/Materials | Learned Storage trap positions 2186 | -9/Materials | Entered another Materials area 2186 | -8/Materials | Evolved 2 slots: Propulsion x1, Utility x1 2187 | -8/Materials | Identified exit to Factory 2420 | -8/Materials | Lost 6 parts (3n1u2w) 2428 | -8/Materials | Repaired Flight Unit 2622 | -8/Materials | Core integrity fell below 50% 2708 | -8/Materials | Lost 4 parts (1p2n1w) 3084 | -8/Materials | Core integrity fell below 20% 3109 | -8/Materials | Destroyed by G-47 Trooper with Particle Gun Last Messages --------------- 03073_ O-24 Administrator: "IFF HANDSHAKE FAILED. SECURING TERMINAL." 03077_ Aluminum Leg destroyed. 03077_ Destroyed Imp. Datajack. 03077_ Katana follow-up attack on O-24 Administrator. 03077_ O-24 Administrator destroyed. 03079_ Acquired data core, extracted dynamic key. 03079_ Decrypted 1 local trap positions from data. 03082_ Connecting with Terminal... 03095_ Katana follow-up attack on G-50 Soldier. 03095_ G-50 Soldier Carbon-fiber Leg severed. 03097_ System corrupted: Matter fused (-7). 03100_ Katana follow-up attack on G-50 Soldier. 03102_ G-50 Soldier Carbon-fiber Leg severed. 03106_ G-50 Soldier destroyed. 03106_ Aluminum Leg destroyed. 03107_ Acquired 2 matter. Map ----- +----------------------------------------------------+ | ????????????????????????????????# #??????? | | ????????????????????????????????# #??????? | | ????????????????????????????????# #??????? | | ????????????????????????????????# #??????? | | ????????????????????????????????# #??????? | | ????????????????????????????????# #??????? | | ????????????????????????????????#+###??????? | | ????????????????????????????????# #????????? | | ????????????????????????????????# #??????? # | | ????????????????????????????????# #?????"" # | | ??????????????????????#####+##### ##?? S" # | | ??????????????????????# # # | | ??????????????????????# + """ # | | ??????????????????????# ###+#####+# """ # | | ??????????????????????# ??# #??"" ? | | ?????????????????????## ??# """ #???? ?? | | ?????????????????????# [??# """ #???????? | | ?????????????????????+ ??# ! """ #???????? | | ?????????????????????? T?# #???????? | | ?????????????????????? ?# " " #???????? | | ??????????????????????# ?# "G" #???????? | | ??????????????????????# ?# """ #???????? | | ??????????????????????+ ?# #???????? | | ??????????????????????# #####+##### #?????? | | ??????????????????????# """ #?????? | | ??????????????????????# @"T" #?????? | | ??????????????????????# ==" " +?????? | | ??????????????????????#gg!!%! #?????? | | ??????????????????????# = ##### #?????? | | ??????????????????????# ! u #?????#?????? | | ??????????????????????# #???????????? | | ??????????????????????# """ #???????????? | | ????????????????????^ """ #???????????? | | ???????????????????? """ #???????????? | | ???????????????????# #???????????? | | ???????????????????# +???????????? | | ???????????????????##+####### #???????????? | | ????????????????????????????# #???????????? | | ?????????????????????????????###???????????? | | ???????????????????????????????????????????? | | ???????????????????????????????????????????? | | ???????????????????????????????????????????? | | ???????????????????????????????????????????? | | ???????????????????????????????????????????? | | ???????????????????????????????????????????? | | | | | | | | | | | +----------------------------------------------------+ Best States ------------- Heat Dissipation 45 Energy Generation 14 Energy Capacity 265 Matter Stores 300 Matter Capacity 300 Sight Range 16 Terrain Scan Density 10 Armor Coverage 150 Melee Speed Boost 20 Evasion (%) 63 Recoil Reduction 1 Offensive Hacking 10 Item Schematics ----------------- None Robot Schematics ------------------ None Fabricated ------------ Nothing Repaired ---------- Med. Laser | 31% | -10/Materials Flight Unit | 10% | -8/Materials Alien Tech Used ----------------- None Achievements -------------- None Challenges ------------ None Game ------ Seed GhostCompanionSubcomponent Manual? 0 Play Time 00:21:03 Cumulative 166.4 hours Start 2025.10.14 @ 17:05:30 End 2025.10.14 @ 17:25:56 Sessions 1 Manual Loads 0 Difficulty Rogue Special Mode None Game No. 293 Rogue 291 Adventurer 0 Explorer 2 Win Type - Total 1 Types 1/0/0/0/0/0/0/0/0/0 Lore% 47 Gallery% 56 Achievement% 46 Wizard Run 0 Options --------- Layout 2 ASCII 0 Keyboard 1 Movement Arrows Keybinds 0 Fullscreen 1 Font 28/SmallcapsGlow Map View 50x49 Zoom Use 0% Tactical HUD 1 Map Filters NONE Filters NONE Steam 1 RUN: 7dcf23b8-10b2-4969-95ca-cb079f2bd925